bitfinex/quotes_ETHUSD_20240731
["timestamp","ask_amount","ask_price","bid_price","bid_amount"]
[1722448004114,7.47,3325.4,3324.6,3.00787]
[1722448004441,7.47,3325.4,3324.7,3.05065273]
[1722448004809,10.47721,3325.4,3324.7,0.04288273]
[1722448005159,7.47,3325.4,3324.7,3.00778]
[1722448005299,7.47,3325.4,3324.8,0.04281834]
[1722448005642,0.747,3325.3,3324.6,0.55]
[1722448005853,7.47,3326.0,3324.6,0.55]
[1722448005996,7.47,3326.0,3324.7,0.04288273]
[1722448005997,3.00711,3325.5,3324.7,0.04288273]
[1722448006211,3.00711,3325.5,3324.6,3.00786]
[1722448006415,3.00734,3325.2,3324.7,0.04291163]
[1722448006715,3.00734,3325.2,3324.4,0.55]
[1722448006915,3.0075,3325.1,3324.8,0.04287202]
[1722448007228,3.0076,3324.9,3324.0,3.0084]
[1722448007440,3.0076,3324.9,3323.9,0.3017]
[1722448007758,3.00788,3324.6,3324.1,0.04332279]
[1722448007951,3.00798,3324.5,3324.0,0.0433872]
[1722448008150,6.01602,3324.5,3324.2,0.04325838]
[1722448008333,6.01602,3324.5,3323.4,3.00892]
[1722448008334,3.00811,3324.4,3324.1,0.03938435]
[1722448008528,3.609582,3324.5,3323.3,2.53348513]
[1722448008529,0.601602,3324.5,3324.3,0.03926725]
[1722448008715,3.00793,3324.6,3324.2,0.0393258]
[1722448008716,3.00788,3324.6,3324.2,0.0393258]
[1722448008914,3.00802,3324.5,3323.6,3.00872]
[1722448009115,6.01612,3324.4,3324.3,0.03926725]
[1722448009314,3.00794,3324.6,3323.6,3.0087]
[1722448009558,3.00774,3324.8,3323.8,3.00852]
[1722448009767,3.308574,3324.7,3323.8,3.00852]
[1722448010067,0.300774,3324.7,3323.9,3.04832685]
[1722448010274,3.00779,3324.7,3323.9,0.03981685]
[1722448010565,3.00767,3324.9,3323.9,0.03981685]
[1722448010744,3.0,3325.0,3323.9,0.58981685]
[1722448010911,0.847462,3324.9,3324.2,3.00822]
[1722448011116,3.855082,3324.9,3323.9,3.59827685]
[1722448011457,3.855082,3324.9,3323.9,0.55]
[1722448011458,3.00781,3324.7,3323.9,0.55]
[1722448011659,3.00781,3324.7,3324.0,0.0316928]
[1722448011954,0.847462,3324.9,3324.0,3.0400928]
[1722448012139,0.601449,3325.2,3324.0,3.0400928]
[1722448012140,0.601449,3325.2,3324.2,3.0082]
[1722448012345,2.3307,3325.8,3324.5,3.00796]
[1722448012561,3.00693,3325.7,3324.6,0.61015324]
[1722448012860,3.00676,3325.9,3324.8,3.00764]
[1722448013063,7.47,3326.0,3324.8,3.00764]
[1722448013064,1.047676,3325.8,3325.0,3.00751]
[1722448013432,1.047676,3325.8,3324.9,0.03965921]
[1722448013433,4.054526,3325.8,3325.1,0.03954217]
[1722448013842,4.054526,3325.8,3324.9,3.00759]
[1722448014045,4.054526,3325.8,3325.2,0.03948365]
[1722448014248,4.054526,3325.8,3324.9,3.00759]
[1722448014427,4.054526,3325.8,3324.6,0.55]
[1722448014428,3.00698,3325.6,3325.3,0.03942513]
[1722448014642,3.00712,3325.5,3324.6,3.55786]
[1722448014851,0.4054526,3325.7,3324.8,3.00761]
[1722448015017,0.4054526,3325.7,3324.6,0.55]
[1722448015018,0.4054526,3325.7,3325.0,3.00751]
[1722448015219,7.47,3326.0,3325.2,3.00728]
[1722448015414,3.607763,3326.2,3325.3,3.04666513]
[1722448015415,3.607713,3326.2,3325.3,3.04666513]
[1722448015621,3.607713,3326.2,3325.3,3.00724]
[1722448015821,0.601283,3326.2,3325.4,0.04330329]
[1722448016132,3.00627,3326.4,3325.3,6.01436]
[1722448016348,3.00627,3326.4,3325.3,3.00716]
[1722448016528,3.00627,3326.4,3325.4,3.05045329]
[1722448016728,7.47,3326.5,3325.5,3.00706]
[1722448016966,10.47616,3326.5,3325.5,3.007]
[1722448017172,1.047616,3326.4,3325.6,0.04317458]
[1722448017317,1.047616,3326.4,3325.4,3.5571]
[1722448017318,3.00635,3326.3,3325.4,3.5571]
[1722448017714,1.047616,3326.4,3325.5,3.04636812]
[1722448018219,4.053886,3326.4,3325.5,3.04636812]
[1722448018969,7.47,3326.5,3325.7,3.00682]
[1722448019149,7.47,3326.5,3325.8,3.0067]
[1722448019354,5.3602,3326.8,3325.5,3.06716481]
[1722448019668,3.00594,3326.8,3325.9,3.00668]
[1722448019870,3.00571,3327.0,3325.9,3.00668]
[1722448019871,3.00571,3327.0,3325.9,3.00663]
[1722448020023,0.300571,3326.9,3326.1,3.00644]
[1722448020220,3.0056,3327.2,3326.2,0.04695107]
[1722448020419,2.289,3327.3,3326.2,0.04695107]
[1722448020420,3.0058,3326.9,3326.2,0.04695107]
[1722448020673,3.00568,3327.1,3326.0,3.00655]
[1722448020886,5.29447,3327.3,3326.3,0.04594565]
[1722448021181,3.00569,3327.1,3326.2,3.00637]
[1722448021394,3.00547,3327.3,3326.4,3.00619]
[1722448021555,3.00526,3327.5,3326.6,3.00606]
[1722448021755,2.4237,3327.8,3326.7,3.00598]
[1722448021756,3.00517,3327.6,3326.7,3.00598]
[1722448021956,3.00493,3327.9,3326.7,0.11135785]
[1722448022157,3.00493,3327.9,3326.8,0.55]
[1722448022399,0.300493,3327.8,3326.8,0.55]
[1722448022688,5.38939,3328.3,3326.9,3.05685726]
[1722448022689,3.00492,3327.9,3326.9,3.05685726]
[1722448022858,3.00501,3327.8,3326.9,3.05685726]
[1722448023604,3.00501,3327.8,3326.9,0.05106726]
[1722448023605,3.00508,3327.7,3326.9,0.05106726]
[1722448024292,3.00523,3327.6,3326.9,0.05106726]
[1722448024449,3.00565,3327.1,3326.9,0.05106726]
[1722448024642,3.00571,3327.0,3326.9,0.05106726]
[1722448024898,3.00571,3327.0,3326.0,3.00655]
[1722448025094,3.00571,3327.0,3325.8,5.76432]
[1722448025095,3.00603,3326.7,3325.8,5.76439]
[1722448025237,3.00603,3326.7,3326.1,0.0515145]
[1722448025441,3.00607,3326.6,3325.8,2.4559]
[1722448025643,3.607221,3326.7,3326.2,0.05143408]
[1722448025895,3.00617,3326.5,3325.8,2.4559]
[1722448026077,3.00625,3326.4,3326.3,0.05135368]
[1722448026262,3.00625,3326.4,3325.4,3.00708]
[1722448026463,3.607491,3326.4,3325.4,3.00708]
[1722448026694,3.607491,3326.4,3325.6,3.00691]
[1722448026695,0.601241,3326.4,3325.6,3.00691]
[1722448026848,3.00613,3326.6,3325.6,3.00691]
[1722448027046,3.607201,3326.7,3325.7,0.0518362]
[1722448027253,0.601191,3326.7,3325.8,3.00673]
[1722448027561,7.47,3326.9,3326.2,3.00642]
[1722448027751,7.47,3326.9,3326.2,5.43062]
[1722448028494,3.00507,3327.7,3326.7,3.00592]
[1722448028642,3.00507,3327.7,3326.7,3.06603186]
[1722448028852,4.353076,3327.7,3326.8,3.60684171]
[1722448029050,1.348006,3327.7,3326.8,3.60684171]
[1722448029254,10.47499,3327.8,3326.8,3.60684171]
[1722448029479,7.47,3327.8,3327.2,3.00551]
[1722448029716,7.47,3327.8,3327.3,0.55]
[1722448029846,7.47,3327.8,3327.3,0.61010573]
[1722448030042,7.47,3327.8,3327.4,3.0557595]
[1722448030247,10.47445,3328.4,3327.5,3.55523]
[1722448030504,3.00468,3328.2,3327.5,0.55]
[1722448030676,3.00472,3328.1,3327.6,0.05030881]
[1722448030864,3.00504,3327.8,3327.6,0.05030881]
[1722448031320,3.00504,3327.8,3326.9,3.0058]
[1722448031615,3.00471,3328.1,3327.2,3.00552]
[1722448031891,3.00495,3327.9,3327.3,0.5998848]
[1722448032104,3.00495,3327.9,3327.3,0.0498848]
[1722448032396,3.00474,3328.1,3327.3,0.0498848]
[1722448032601,3.00474,3328.1,3327.0,0.55]
[1722448032602,3.00533,3327.5,3327.0,0.55]
[1722448032808,3.00533,3327.5,3326.6,2.2917]
[1722448033100,3.00544,3327.3,3326.6,2.2917]
[1722448033421,3.00544,3327.3,3325.6,42.29]
[1722448033422,3.00553,3327.2,3326.7,0.05036703]
[1722448033549,3.00577,3327.0,3326.7,0.05036703]
[1722448033753,3.00589,3326.8,3326.1,2.2753]
[1722448034052,3.00589,3326.8,3325.9,3.0067]
[1722448034281,3.00574,3327.0,3325.9,3.0067]
[1722448034596,3.00555,3327.2,3325.7,0.06012692]
[1722448034597,7.47,3327.3,3326.1,3.00649]
[1722448034753,7.47,3327.3,3325.7,0.3017]
[1722448035087,3.00625,3326.4,3325.7,0.3017]
[1722448035284,3.00634,3326.3,3325.7,0.3017]
[1722448035789,3.00621,3326.5,3325.6,9.5683]
[1722448035990,3.00583,3326.9,3325.9,3.00669]
[1722448036518,3.00621,3326.5,3325.6,10.82584]
[1722448036660,3.00606,3326.7,3325.7,3.00686]
[1722448036861,3.00602,3326.7,3325.8,0.06012942]
[1722448037059,3.00602,3326.7,3325.9,0.55]
[1722448037310,0.300602,3326.6,3325.9,0.55]
[1722448037516,0.300602,3326.6,3325.8,3.55677]
[1722448037734,3.0,3327.2,3325.8,3.55677]
[1722448037735,3.00578,3327.0,3325.8,3.61689943]
[1722448037913,3.0056,3327.2,3325.8,0.61012943]
[1722448038226,3.00586,3326.9,3325.9,3.00663]
[1722448038427,3.00594,3326.8,3326.0,0.55]
[1722448038635,3.00571,3327.0,3326.1,0.05091646]
[1722448038783,3.00571,3327.0,3326.2,0.55]
[1722448038990,3.00592,3326.8,3326.2,0.55]
[1722448039234,3.00598,3326.7,3326.3,0.05075564]
[1722448039400,3.00598,3326.7,3326.0,0.55]
[1722448039731,3.00598,3326.7,3326.1,0.05091646]
[1722448039732,6.61323,3326.7,3326.1,0.05091646]
[1722448039888,3.00589,3326.8,3326.1,0.05091646]
[1722448040093,3.00589,3326.8,3325.9,3.00668]
[1722448040294,3.00577,3327.0,3326.2,0.05083605]
[1722448040518,3.00577,3327.0,3325.9,3.00664]
[1722448040832,0.300577,3326.9,3326.0,3.5566]
[1722448041028,3.00589,3326.8,3326.1,0.05091646]
[1722448041192,3.00615,3326.6,3326.1,0.05091646]
[1722448041539,3.00603,3326.7,3326.1,0.05091646]
[1722448041833,0.300577,3326.9,3326.1,0.05091646]
[1722448042137,3.00612,3326.6,3326.0,0.55]
[1722448042285,3.00612,3326.6,3325.8,0.55]
[1722448042948,3.00589,3326.8,3325.8,0.55]
[1722448042949,3.00588,3326.9,3325.9,0.0510773]
[1722448043104,3.00641,3326.3,3325.9,0.0510773]
[1722448043310,3.00625,3326.4,3325.8,0.55]
[1722448043510,3.00625,3326.4,3326.0,0.05153819]
[1722448043804,3.00622,3326.5,3326.1,0.05145777]
[1722448044046,3.306842,3326.5,3325.6,0.55]
[1722448044248,3.00635,3326.3,3325.7,0.05177947]
[1722448044449,3.00635,3326.3,3325.8,0.55]
[1722448044618,3.306842,3326.5,3325.9,0.05161861]
[1722448045150,3.00626,3326.4,3325.9,0.05161861]
[1722448045577,3.00653,3326.1,3325.9,0.05161861]
[1722448045713,0.6313102,3326.4,3325.9,0.05161861]
[1722448045714,3.00648,3326.2,3325.9,0.05161861]
[1722448045913,3.00648,3326.2,3325.1,5.44116]
[1722448045914,3.00661,3326.0,3325.1,5.44116]
[1722448046357,7.47,3326.3,3325.2,0.05218171]
[1722448046543,3.00679,3325.8,3325.2,0.05218171]
[1722448046711,3.00689,3325.7,3325.2,0.05218171]
[1722448047051,3.00707,3325.5,3324.6,5.39962]
[1722448047263,3.00707,3325.5,3325.3,0.05210125]
[1722448047613,3.00707,3325.5,3324.7,0.539962]
[1722448047814,3.00707,3325.5,3324.8,0.05250358]
[1722448048016,3.00692,3325.7,3324.8,0.05250358]
[1722448048248,3.00711,3325.5,3324.8,0.05250358]
[1722448049166,3.00711,3325.5,3324.6,2.3918]
[1722448049319,6.01425,3325.5,3324.9,0.05242311]
[1722448049673,3.00717,3325.4,3325.0,0.05234264]
[1722448050021,3.0073,3325.3,3324.6,3.232571]
[1722448050234,3.0073,3325.3,3324.7,0.60258407]
[1722448050682,3.00715,3325.5,3324.7,0.60258407]
[1722448050844,3.00722,3325.4,3324.7,0.60258407]
[1722448051048,3.00744,3325.1,3324.7,0.05258407]
[1722448051244,3.00744,3325.1,3324.2,3.00823]
[1722448051447,3.00744,3325.1,3324.3,0.59296035]
[1722448051663,3.00725,3325.3,3324.3,3.66120626]
[1722448051866,3.00725,3325.3,3324.4,3.00804]
[1722448052049,6.01425,3325.5,3324.5,0.55]
[1722448052379,7.47,3325.7,3324.9,3.0076]
[1722448052582,10.47688,3325.7,3325.0,3.0034]
[1722448052785,10.47688,3325.7,3325.0,3.04590963]
[1722448052939,7.47,3325.7,3325.0,3.04590963]
[1722448053685,3.00698,3325.6,3325.0,3.04590963]
[1722448053908,3.00707,3325.5,3325.0,0.04250963]
[1722448054074,3.0073,3325.3,3325.0,0.04250963]
[1722448054241,3.0073,3325.3,3324.6,2.3008]
[1722448054242,3.00735,3325.2,3324.0,3.07116428]
[1722448054435,3.00735,3325.2,3324.1,3.31544643]
[1722448054683,3.00735,3325.2,3324.2,0.04329706]
[1722448054684,3.00752,3325.0,3324.2,0.04329706]
[1722448054984,4.054708,3325.6,3324.2,0.04329706]
[1722448054985,3.00743,3325.1,3324.2,0.04329706]
[1722448055186,3.00766,3324.9,3324.2,0.04329706]
[1722448056580,3.00711,3325.5,3324.2,1.29645103]
[1722448056783,4.054708,3325.6,3324.7,3.00773]
[1722448056938,3.00699,3325.6,3324.8,0.55]
[1722448057139,6.01421,3325.5,3324.8,0.59291069]
[1722448057339,3.00726,3325.3,3324.8,0.04291069]
[1722448057537,0.0008,3325.0,3324.8,0.04291069]
[1722448057986,0.0008,3325.0,3324.5,0.55]
[1722448058183,0.0008,3325.0,3324.9,0.04284631]
[1722448058791,0.0008,3325.0,3324.4,3.55805]
[1722448059002,0.0008,3325.0,3324.9,0.04284631]
[1722448059183,0.0008,3325.0,3324.7,0.55]
[1722448059352,0.0008,3325.0,3324.9,0.04284631]
[1722448059556,0.0008,3325.0,3324.8,0.04291069]
[1722448059905,0.0008,3325.0,3324.9,0.04284631]
[1722448060262,0.0008,3325.0,3324.6,0.55]
[1722448060597,0.0008,3325.0,3324.7,0.04297508]
[1722448061677,0.0008,3325.0,3324.7,3.05073508]
[1722448061988,0.0008,3325.0,3324.8,0.55]
[1722448062303,0.0008,3325.0,3324.9,0.04284631]
[1722448062890,0.0008,3325.0,3324.9,5.47614631]
[1722448063105,0.0008,3325.0,3324.9,9.64237583]
[1722448063765,0.0008,3325.0,3324.9,6.63477583]
[1722448066277,0.0008,3325.0,3324.9,9.64237583]
[1722448068195,0.0008,3325.0,3324.9,3.62717583]
[1722448068503,0.0008,3325.0,3324.9,3.01854631]
[1722448068664,0.0008,3325.0,3324.9,0.04284631]
[1722448068865,0.0008,3325.0,3324.5,3.00792]
[1722448069079,0.0008,3325.0,3324.6,0.04297341]
[1722448069718,0.0008,3325.0,3324.3,0.06015904]
[1722448069916,0.0008,3325.0,3324.7,0.04290903]
[1722448070079,0.0008,3325.0,3324.3,3.00807]
[1722448070280,3.0076,3324.9,3324.8,0.04284464]
[1722448070478,3.00813,3324.4,3323.5,3.06099966]
[1722448070692,3.00813,3324.4,3323.5,3.00881]
[1722448070925,7.47,3324.8,3323.6,0.03634793]
[1722448070926,3.00779,3324.7,3323.6,0.03634793]
[1722448071103,3.00825,3324.2,3323.6,0.03634793]
[1722448071626,3.00825,3324.2,3323.4,2.4127]
[1722448072184,3.00808,3324.4,3323.5,3.04526162]
[1722448072527,3.00821,3324.3,3323.5,0.03640162]
[1722448073543,3.00843,3324.0,3323.5,0.58640162]
[1722448073827,3.00834,3324.1,3323.5,0.58640162]
[1722448074390,3.0085,3324.0,3323.5,0.58640162]
[1722448074626,3.00853,3323.9,3323.5,0.58640162]
[1722448074844,3.00872,3323.7,3323.5,0.03640162]
[1722448074988,3.00878,3323.6,3323.5,0.03640162]
[1722448075192,3.00878,3323.6,3322.7,3.0096]
[1722448075493,3.00878,3323.6,3322.8,0.03677756]
[1722448075805,3.00891,3323.5,3322.8,0.03677756]
[1722448076000,3.00877,3323.7,3322.8,0.03677756]
[1722448076207,7.47,3323.9,3323.1,3.00923]
[1722448076637,7.47,3323.9,3323.3,3.00897]
[1722448076968,7.47,3323.9,3323.4,2.46555532]
[1722448077244,3.00807,3324.4,3323.5,0.55]
[1722448077407,1.217,3324.4,3323.6,3.00877]
[1722448077609,4.22507,3324.4,3323.7,0.55]
[1722448078147,7.47,3324.5,3323.8,3.04478055]
[1722448078299,7.47,3324.5,3323.9,0.55]
[1722448078644,10.47803,3324.5,3324.0,0.03389694]
[1722448079051,10.47803,3324.5,3323.7,0.55]
[1722448079213,3.00818,3324.3,3323.6,0.55]
[1722448079412,3.00818,3324.3,3323.5,0.55]
[1722448079624,13.48608,3324.5,3323.7,0.0340456]
[1722448079830,13.48608,3324.5,3323.5,3.55885]
[1722448079831,1.348608,3324.4,3323.6,3.04286516]
[1722448080014,7.47,3324.5,3323.8,0.03399605]
[1722448080313,7.47,3324.5,3323.7,3.55869]
[1722448080314,7.47,3324.5,3323.9,0.03677537]
[1722448080510,10.47798,3324.5,3323.9,0.03677537]
[1722448080689,7.47,3324.5,3323.8,3.00857]
[1722448080893,7.47,3324.5,3323.9,0.03677537]
[1722448081151,0.747,3324.4,3323.9,0.03677537]
[1722448081457,3.00832,3324.2,3323.4,2.4291]
[1722448081658,3.00832,3324.2,3323.5,0.58414473]
[1722448081951,3.75506,3324.4,3323.5,0.58414473]
[1722448082273,3.00834,3324.1,3323.5,0.58414473]
[1722448082419,3.75506,3324.4,3323.5,0.58414473]
[1722448082796,3.00825,3324.2,3323.5,0.58414473]
[1722448083155,1.12251,3324.3,3323.5,0.03414473]
[1722448083319,3.00811,3324.4,3323.6,3.00878]
[1722448083516,3.00811,3324.4,3323.6,3.04287516]
[1722448083953,7.47,3324.5,3323.8,3.00859]
[1722448084159,7.47,3324.5,3323.8,3.00852]
[1722448084476,7.47,3324.5,3324.1,3.00827]
[1722448084654,3.00795,3324.6,3324.2,0.03661434]
[1722448084972,3.609519,3324.6,3323.8,5.36719]
[1722448085109,3.00795,3324.6,3323.8,2.3586]
[1722448085310,3.00774,3324.8,3323.9,0.03394649]
[1722448085774,7.47,3324.9,3323.9,0.58394649]
[1722448086067,3.00805,3324.5,3323.9,0.58394649]
[1722448086230,3.00805,3324.5,3323.9,0.03394649]
[1722448086559,3.00816,3324.3,3323.4,5.31949]
[1722448086761,11.079626,3324.5,3324.0,0.03672169]
[1722448086967,11.079626,3324.5,3323.6,3.00873]
[1722448087108,11.079626,3324.5,3324.1,0.03384739]
[1722448087109,7.47,3324.5,3324.1,0.03384739]
[1722448087318,3.00772,3324.8,3324.0,3.00841]
[1722448087550,10.47766,3324.9,3324.0,3.00837]
[1722448087753,3.00772,3324.8,3324.1,0.03666801]
[1722448088074,2.565618,3324.8,3324.1,0.03666801]
[1722448088234,2.565618,3324.8,3324.1,3.00827]
[1722448088565,2.565618,3324.8,3324.2,0.03661434]
[1722448089063,2.565618,3324.8,3323.9,3.00846]
[1722448089264,2.565618,3324.8,3324.0,3.00842]
[1722448089420,2.565618,3324.8,3324.1,3.00831]
[1722448089849,2.565618,3324.8,3324.2,3.04484434]
[1722448090130,7.47,3324.9,3324.2,3.00817]
[1722448090564,7.47,3324.9,3324.4,3.00802]
[1722448090862,7.47,3324.9,3324.3,0.0364505]
[1722448090863,0.0008,3325.0,3324.5,0.03634317]
[1722448091218,0.0008,3325.0,3324.6,0.03628951]
[1722448091683,0.0008,3325.0,3324.1,3.00826]
[1722448091863,3.309193,3325.0,3324.2,0.55]
[1722448092018,0.0008,3325.0,3324.2,3.55824]
[1722448092218,3.00833,3325.0,3324.2,0.55]
[1722448092423,3.00833,3325.0,3324.3,0.0364505]
[1722448092619,0.0008,3325.0,3324.2,3.00823]
[1722448092819,0.0008,3325.0,3324.3,3.0445405]
[1722448093032,0.0008,3325.0,3324.5,3.00795]
[1722448093335,0.0008,3325.0,3324.6,0.03628951]
[1722448093658,0.0008,3325.0,3324.7,0.03623585]
[1722448094179,0.0008,3325.0,3324.8,0.0361822]
[1722448094549,0.0008,3325.0,3324.4,3.00805]
[1722448094753,0.0008,3325.0,3324.5,3.00791]
[1722448094952,0.0008,3325.0,3324.5,3.04425317]
[1722448096011,0.0008,3325.0,3324.7,3.00778]
[1722448096296,0.0008,3325.0,3324.8,0.0364609]
[1722448096498,0.0008,3325.0,3324.4,6.094177]
[1722448096789,0.0008,3325.0,3324.5,3.04457188]
[1722448097379,0.0008,3325.0,3324.5,3.70999977]
[1722448097892,0.0008,3325.0,3324.5,0.70204977]
[1722448098087,0.0008,3325.0,3324.5,0.03662188]
[1722448098312,0.0008,3325.0,3324.2,3.00821]
[1722448098595,0.0008,3325.0,3324.6,0.03656821]
[1722448098801,0.0008,3325.0,3324.2,3.00822]
[1722448099253,0.0008,3325.0,3324.3,0.03668447]
[1722448099453,0.0008,3325.0,3324.3,3.04478447]
[1722448100406,0.0008,3325.0,3324.4,3.00805]
[1722448100567,0.0008,3325.0,3324.3,0.03668447]
[1722448100911,0.0008,3325.0,3324.5,0.03657714]
[1722448101203,0.0008,3325.0,3324.4,3.0446908]
[1722448101405,0.0008,3325.0,3324.6,0.03652348]
[1722448101583,0.0008,3325.0,3324.6,3.00785]
[1722448101906,0.0008,3325.0,3324.7,0.03646982]
[1722448102965,0.0008,3325.0,3324.2,3.00824]
[1722448103173,0.0008,3325.0,3324.8,0.03641616]
[1722448103489,0.0008,3325.0,3324.3,0.55]
[1722448103717,0.0008,3325.0,3324.4,3.04449147]
[1722448104806,0.0008,3325.0,3324.4,6.05243147]
[1722448105020,0.0008,3325.0,3324.4,3.04443147]
[1722448105171,0.0008,3325.0,3324.4,0.03644147]
[1722448105374,0.0008,3325.0,3324.5,3.0079]
[1722448105600,0.0008,3325.0,3324.5,0.0363878]
[1722448105794,0.0008,3325.0,3324.4,0.55]
[1722448106011,0.0008,3325.0,3324.6,0.03633414]
[1722448106208,0.0008,3325.0,3324.5,3.00792]
[1722448106511,0.0008,3325.0,3324.6,0.03633414]
[1722448107714,0.0008,3325.0,3324.4,3.55]
[1722448108099,0.0008,3325.0,3324.5,0.03638436]
[1722448108418,0.0008,3325.0,3324.0,3.00838]
[1722448108622,2.2613,3325.0,3324.6,0.0363307]
[1722448108928,0.300825,3324.9,3324.1,3.00827]
[1722448109217,0.300825,3324.9,3324.0,3.00835]
[1722448109373,0.300825,3324.9,3324.2,0.03654192]
[1722448109567,0.300825,3324.9,3324.0,3.00835]
[1722448109773,0.5569655,3324.8,3324.3,0.03648825]
[1722448110086,0.5569655,3324.8,3324.4,0.03643458]
[1722448110436,0.5569655,3324.8,3323.8,3.00859]
[1722448110437,3.0078,3324.7,3323.8,3.00859]
[1722448110714,0.5569655,3324.8,3323.9,0.55]
[1722448110898,0.38655405,3324.7,3324.0,3.04512843]
[1722448111104,0.5569655,3324.8,3324.0,3.04512843]
[1722448111316,3.5647255,3324.8,3324.0,0.03672843]
[1722448111822,3.00788,3324.6,3324.0,0.03672843]
[1722448111982,3.00782,3324.7,3324.0,0.03672843]
[1722448112184,3.00804,3324.5,3323.3,3.00902]
[1722448112387,3.00808,3324.4,3323.5,3.00887]
[1722448112584,7.47,3324.5,3323.6,3.0087]
[1722448112799,7.47,3324.5,3323.8,3.00859]
[1722448113123,7.47,3324.5,3323.6,3.04285222]
[1722448113124,7.47,3324.5,3323.9,0.03400355]
[1722448113438,7.47,3324.5,3323.8,3.00854]
[1722448113721,7.47,3324.5,3323.8,3.00853]
[1722448113936,7.47,3324.5,3323.9,3.59531718]
[1722448114238,7.47,3324.5,3323.9,3.59528718]
[1722448114517,7.47,3324.5,3324.0,3.00841]
[1722448114728,0.5569655,3324.8,3324.1,0.03672982]
[1722448114906,2.32046055,3324.7,3324.1,0.03672982]
[1722448115084,2.32046055,3324.7,3324.0,3.00841]
[1722448115284,2.32046055,3324.7,3323.9,0.55]
[1722448115618,2.32046055,3324.7,3323.8,3.00853]
[1722448115619,5.32826055,3324.7,3323.7,3.00862]
[1722448115777,3.00793,3324.6,3323.8,0.55]
[1722448115972,0.83361906,3324.5,3323.8,0.0340531]
[1722448116611,3.84158906,3324.5,3323.8,0.0340531]
[1722448116789,0.83361906,3324.5,3323.8,0.0340531]
[1722448117085,2.32046055,3324.7,3323.8,3.00859]
[1722448117291,2.32046055,3324.7,3323.9,3.00842]
[1722448117527,3.00789,3324.6,3323.7,3.55862]
[1722448117815,2.32046055,3324.7,3324.0,0.03411604]
[1722448118052,3.00789,3324.6,3323.7,3.55868]
[1722448118224,0.53283505,3324.5,3323.7,3.55863]
[1722448118525,3.54081505,3324.5,3323.8,0.03421514]
[1722448118687,0.53283505,3324.5,3323.8,0.03421514]
[1722448119223,0.53283505,3324.5,3323.8,3.00854]
[1722448119436,5.32831055,3324.7,3323.9,0.03416559]
[1722448119727,2.32046055,3324.7,3323.9,3.04265559]
[1722448119877,0.5569655,3324.8,3324.0,3.04252604]
[1722448120084,3.5646655,3324.8,3324.0,3.04252604]
[1722448120634,3.5646655,3324.8,3324.0,3.00841]
[1722448120777,0.5569655,3324.8,3324.0,3.00841]
[1722448121123,0.5569655,3324.8,3324.1,0.03406649]
[1722448121679,7.47,3324.9,3324.1,0.03406649]
[1722448121908,7.47,3324.9,3324.4,3.00799]
[1722448122106,7.47,3324.9,3324.5,0.03669069]
[1722448122354,7.47,3324.9,3324.2,3.00819]
[1722448122557,7.47,3324.9,3324.6,0.03663703]
[1722448122765,7.47,3324.9,3324.1,0.55]
[1722448122766,8.517833,3324.9,3324.1,0.55]
[1722448122913,11.525443,3324.9,3324.7,0.03658337]
[1722448123109,4.055443,3324.9,3324.1,3.55]
[1722448123311,4.055443,3324.9,3324.2,0.03685169]
[1722448123506,1.047833,3324.9,3324.2,0.03685169]
[1722448123703,4.055513,3324.9,3324.2,0.03685169]
[1722448123961,0.4056313,3324.8,3324.2,0.03685169]
[1722448124108,0.4056313,3324.8,3323.9,3.0]
[1722448124456,0.4056313,3324.8,3324.0,3.59247604]
[1722448124604,0.4056313,3324.8,3324.1,3.0]
[1722448124806,0.4056313,3324.8,3324.1,6.04238649]
[1722448125052,3.00765,3324.9,3324.1,0.03406649]
[1722448126124,7.4708,3325.0,3324.2,3.00821]
[1722448126321,7.4708,3325.0,3324.3,0.03679802]
[1722448127063,3.00761,3324.9,3324.3,0.03679802]
[1722448127203,3.00771,3324.8,3324.3,0.03679802]
[1722448127408,0.601532,3324.7,3324.0,0.55]
[1722448127624,0.601532,3324.7,3324.4,0.03391786]
[1722448127824,0.601532,3324.7,3324.0,6.55842]
[1722448128057,10.4784,3325.0,3324.5,0.03386833]
[1722448128354,10.4784,3325.0,3324.0,6.55842]
[1722448128355,10.4784,3325.0,3324.1,3.00828]
[1722448128514,10.4784,3325.0,3324.6,0.03377114]
[1722448128707,3.0084,3325.0,3324.2,3.00822]
[1722448129150,3.0084,3325.0,3324.3,0.03674639]
[1722448129306,3.609975,3325.0,3324.3,0.03674639]
[1722448129955,0.602375,3325.0,3324.3,0.03674639]
[1722448130370,0.0008,3325.0,3324.5,3.00797]
[1722448130507,0.0008,3325.0,3324.6,3.00787]
[1722448130711,0.0008,3325.0,3324.7,0.03653175]
[1722448131012,0.0008,3325.0,3324.7,3.04423175]
[1722448131442,0.0008,3325.0,3324.7,0.03653175]
[1722448131770,0.0008,3325.0,3324.5,6.01583]
[1722448131914,0.0008,3325.0,3324.8,0.03648153]
[1722448132115,0.0008,3325.0,3324.6,3.00787]
[1722448132344,0.0008,3325.0,3324.7,0.03653519]
[1722448133759,0.0008,3325.0,3324.5,3.00794]
[1722448133917,0.0008,3325.0,3324.8,0.03648153]
[1722448134123,0.0008,3325.0,3324.5,3.00794]
[1722448134445,0.0008,3325.0,3324.6,0.03658885]
[1722448134918,0.0008,3325.0,3324.6,3.04445885]
[1722448135858,0.0008,3325.0,3324.6,0.03658885]
[1722448136416,0.0008,3325.0,3324.4,3.55806]
[1722448136616,0.0008,3325.0,3324.7,0.03653519]
[1722448136845,0.0008,3325.0,3324.6,3.00786]
[1722448137046,0.0008,3325.0,3324.8,0.03648153]
[1722448137248,0.0008,3325.0,3324.7,0.03653519]
[1722448137457,0.0008,3325.0,3324.9,0.03642788]